lending/lending_fUSD_20250808
["ID","MTS","AMOUNT","RATE_DAILY","PERIOD"]
[377988406,1754651446835,-400.0,0.00019038,2]
[377988408,1754651446846,-74.2161277,0.00019038,2]
[377988410,1754651446858,-593.35594407,0.00019038,2]
[377988413,1754651446874,-286.84534336,0.00019006,2]
[377988415,1754651446887,-397.12860004,0.00019006,2]
[377988417,1754651446899,-4190.04612546,0.00019006,2]
[377988450,1754651447203,-866.0,0.00018879,2]
[377988452,1754651447217,-216.89480433,0.00019006,2]
[377988472,1754651447410,-12849.08531291,0.00019006,2]
[377988473,1754651447426,-5.41792823,0.00019038,2]
[377988474,1754651447440,-706.14,0.00019038,2]
[377988475,1754651447455,-400.0,0.00019038,2]
[377988476,1754651447469,-504.59,0.00019038,2]
[377988477,1754651447485,-976.82,0.00019038,2]
[377988478,1754651447499,-678.47,0.00019038,2]
[377988479,1754651447513,-919.01,0.00019038,2]
[377988480,1754651447525,-400.0,0.00019038,2]
[377988481,1754651447537,-619.47,0.00019038,2]
[377988482,1754651447554,-1436.0,0.00019038,2]
[377988483,1754651447566,-400.0,0.00019038,2]
[377988484,1754651447576,-400.0,0.00019038,2]
[377988485,1754651447591,-400.0,0.00019038,2]
[377988486,1754651447606,-400.0,0.00019038,2]
[377988487,1754651447617,-587.92,0.00019038,2]
[377988488,1754651447629,-424.82,0.00019038,2]
[377988489,1754651447646,-1279.45,0.00019038,2]
[377988490,1754651447659,-400.0,0.00019038,2]
[377988491,1754651447671,-700.65,0.00019038,2]
[377988492,1754651447684,-742.39,0.00019038,2]
[377988493,1754651447696,-400.0,0.00019038,2]
[377988494,1754651447709,-400.02,0.00019038,2]
[377988495,1754651447722,-1340.2,0.00019038,2]
[377988496,1754651447735,-400.0,0.00019038,2]
[377988497,1754651447748,-1453.7,0.00019038,2]
[377988498,1754651447760,-918.22,0.00019038,2]
[377988499,1754651447773,-1878.02,0.00019038,2]
[377988500,1754651447785,-12974.18,0.00019038,2]
[377988501,1754651447798,-400.0,0.00019038,2]
[377988502,1754651447810,-714.31,0.00019038,2]
[377988503,1754651447823,-1156.26,0.00019038,2]
[377988504,1754651447835,-472.15,0.00019039,2]
[377988505,1754651447848,-400.0,0.00019039,2]
[377988506,1754651447860,-400.0,0.00019039,2]
[377988507,1754651447873,-613.98,0.00019039,2]
[377988508,1754651447886,-400.0,0.00019039,2]
[377988509,1754651447898,-516.82,0.00019039,2]
[377988510,1754651447911,-701.41,0.00019039,2]
[377988511,1754651447925,-400.0,0.00019039,2]
[377988512,1754651447937,-400.0,0.00019039,2]
[377988513,1754651447950,-400.78,0.00019039,2]
[377988514,1754651447962,-683.49,0.00019039,2]
[377988515,1754651447975,-578.54,0.00019039,2]
[377988516,1754651447988,-510.66,0.00019039,2]
[377988517,1754651448000,-457.77,0.00019039,2]
[377988518,1754651448013,-400.0,0.00019039,2]
[377988519,1754651448027,-963.39,0.00019039,2]
[377988520,1754651448040,-400.0,0.00019039,2]
[377988521,1754651448054,-609.65,0.00019039,2]
[377988522,1754651448067,-410.02,0.00019039,2]
[377988523,1754651448081,-400.0,0.00019039,2]
[377988524,1754651448094,-520.77,0.00019039,2]
[377988525,1754651448107,-400.0,0.00019039,2]
[377988526,1754651448120,-400.0,0.00019039,2]
[377988527,1754651448136,-475.76,0.00019039,2]
[377988528,1754651448149,-380.27916008,0.00019039,2]
[377988529,1754651448162,-430.18,0.00019039,2]
[377988530,1754651448175,-400.0,0.00019039,2]
[377988531,1754651448188,-648.05,0.00019039,2]
[377988532,1754651448201,-400.0,0.00019039,2]
[377988533,1754651448214,-418.18,0.00019039,2]
[377988534,1754651448228,-400.0,0.00019039,2]
[377988535,1754651448241,-718.73,0.00019039,2]
[377988536,1754651448254,-686.88,0.00019039,2]
[377988537,1754651448267,-807.4,0.00019039,2]
[377988538,1754651448284,-400.0,0.00019039,2]
[377988539,1754651448297,-644.96,0.00019039,2]
[377988540,1754651448310,-430.21,0.00019039,2]
[377988541,1754651448324,-400.0,0.00019039,2]
[377988542,1754651448337,-621.62,0.00019039,2]
[377988543,1754651448351,-444.86,0.00019039,2]
[377988544,1754651448366,-400.0,0.00019039,2]
[377988545,1754651448379,-859.83,0.00019039,2]
[377988546,1754651448392,-889.86,0.00019039,2]
[377988547,1754651448406,-400.0,0.00019039,2]
[377988548,1754651448418,-400.0,0.00019039,2]
[377988549,1754651448431,-538.77,0.00019039,2]
[377988550,1754651448444,-597.6,0.00019039,2]
[377988551,1754651448457,-689.8,0.00019039,2]
[377988552,1754651448469,-400.0,0.00019039,2]
[377988553,1754651448482,-597.95,0.00019039,2]
[377988554,1754651448495,-400.0,0.00019039,2]
[377988555,1754651448508,-705.9,0.00019039,2]
[377988556,1754651448520,-400.0,0.00019039,2]
[377988557,1754651448534,-400.0,0.00019039,2]
[377988558,1754651448546,-400.0,0.00019039,2]
[377988559,1754651448558,-400.0,0.00019039,2]
[377988560,1754651448570,-400.0,0.00019039,2]
[377988561,1754651448582,-400.0,0.00019039,2]
[377988562,1754651448596,-400.0,0.00019039,2]
[377988563,1754651448608,-489.29,0.00019039,2]
[377988564,1754651448621,-400.0,0.00019039,2]
[377988565,1754651448633,-400.0,0.00019039,2]
[377988566,1754651448646,-400.0,0.00019039,2]
[377988567,1754651448659,-400.0,0.00019039,2]
[377988568,1754651448672,-466.92894023,0.00019039,2]
[377988569,1754651448685,-400.0,0.00019039,2]
[377988570,1754651448697,-444.14,0.00019039,2]
[377988571,1754651448710,-400.0,0.00019039,2]
[377988572,1754651448723,-389.19737793,0.00019039,2]
[377988573,1754651448735,-400.0,0.00019039,2]
[377988574,1754651448747,-400.0,0.00019039,2]
[377988575,1754651448759,-473.84,0.00019039,2]
[377988576,1754651448772,-644.33,0.00019039,2]
[377988577,1754651448784,-441.99,0.00019039,2]
[377988578,1754651448796,-672.78,0.00019039,2]
[377988579,1754651448809,-400.0,0.00019039,2]
[377988580,1754651448821,-400.0,0.00019039,2]
[377988581,1754651448833,-400.0,0.00019039,2]
[377988582,1754651448845,-1138.28,0.00019039,2]
[377988583,1754651448857,-544.35,0.00019039,2]
[377988584,1754651448869,-400.0,0.00019039,2]
[377988585,1754651448882,-459.04311897,0.00019039,2]
[377988586,1754651448894,-823.51,0.00019039,2]
[377988587,1754651448907,-838.12,0.00019039,2]
[377988588,1754651448919,-467.79,0.00019039,2]
[377988589,1754651448933,-400.0,0.00019039,2]
[377988590,1754651448945,-685.44,0.00019039,2]
[377988591,1754651448957,-400.0,0.00019039,2]
[377988592,1754651448968,-672.35,0.00019039,2]
[377988593,1754651448980,-400.0,0.00019039,2]
[377988594,1754651448993,-400.0,0.00019039,2]
[377988595,1754651449006,-813.42,0.00019039,2]
[377988596,1754651449018,-637.51,0.00019039,2]
[377988597,1754651449031,-400.0,0.00019039,2]
[377988598,1754651449043,-531.93,0.00019039,2]
[377988599,1754651449055,-400.0,0.00019039,2]
[377988600,1754651449068,-461.49,0.00019039,2]
[377988601,1754651449080,-400.0,0.00019039,2]
[377988602,1754651449092,-400.0,0.00019039,2]
[377988603,1754651449104,-846.74,0.00019039,2]
[377988604,1754651449116,-509.47,0.00019039,2]
[377988605,1754651449129,-400.0,0.00019039,2]
[377988606,1754651449141,-400.0,0.00019039,2]
[377988607,1754651449153,-400.0,0.00019039,2]
[377988608,1754651449165,-528.16469845,0.00019039,2]
[377988609,1754651449178,-400.0,0.00019039,2]
[377988610,1754651449192,-781.03,0.00019039,2]
[377988611,1754651449204,-682.39,0.00019039,2]
[377988612,1754651449216,-558.5,0.00019039,2]
[377988613,1754651449229,-234.50591534,0.00019039,2]
[377988614,1754651449242,-441.36,0.00019039,2]
[377988615,1754651449254,-617.21,0.00019039,2]
[377988616,1754651449263,-420.63,0.00019039,2]
[377988617,1754651449273,-400.0,0.00019039,2]
[377988618,1754651449284,-400.0,0.00019039,2]
[377988619,1754651449293,-400.0,0.00019039,2]
[377988620,1754651449302,-1170.06,0.00019039,2]
[377988621,1754651449311,-668.55,0.00019039,2]
[377988622,1754651449322,-400.0,0.00019039,2]
[377988623,1754651449331,-400.0,0.00019039,2]
[377988624,1754651449340,-667.49,0.00019039,2]
[377988625,1754651449349,-400.0,0.00019039,2]
[377988626,1754651449359,-400.0,0.00019039,2]
[377988627,1754651449370,-662.52,0.00019039,2]
[377988628,1754651449379,-757.4,0.00019039,2]
[377988629,1754651449388,-400.0,0.00019039,2]
[377988630,1754651449397,-763.02,0.00019039,2]
[377988631,1754651449406,-474.74,0.00019039,2]
[377988632,1754651449415,-561.16,0.00019039,2]
[377988633,1754651449425,-400.0,0.00019039,2]
[377988634,1754651449434,-807.87,0.00019039,2]
[377988635,1754651449444,-790.84,0.00019039,2]
[377988636,1754651449454,-400.0,0.00019039,2]
[377988637,1754651449464,-477.34,0.00019039,2]
[377988638,1754651449473,-623.55,0.00019039,2]
[377988639,1754651449483,-400.0,0.00019039,2]
[377988640,1754651449492,-400.0,0.00019039,2]
[377988641,1754651449501,-400.0,0.00019039,2]
[377988642,1754651449511,-427.57,0.00019039,2]
[377988643,1754651449519,-1000.25,0.00019039,2]
[377988644,1754651449529,-650.42,0.00019039,2]
[377988645,1754651449538,-483.65,0.00019039,2]
[377988646,1754651449547,-417.19,0.00019039,2]
[377988647,1754651449556,-709.92,0.00019039,2]
[377988648,1754651449565,-523.24,0.00019039,2]
[377988649,1754651449575,-400.0,0.00019039,2]
[377988650,1754651449584,-400.0,0.00019039,2]
[377988651,1754651449593,-873.15,0.00019039,2]
[377988652,1754651449603,-752.88,0.00019039,2]
[377988653,1754651449612,-400.0,0.00019039,2]
[377988654,1754651449621,-945.64,0.00019039,2]
[377988655,1754651449631,-400.0,0.00019039,2]
[377988656,1754651449640,-753.52,0.00019039,2]
[377988657,1754651449650,-400.0,0.00019039,2]
[377988658,1754651449659,-400.0,0.00019039,2]
[377988659,1754651449669,-1368.37,0.00019039,2]
[377988660,1754651450159,-400.0,0.00019039,2]
[377988661,1754651450178,-807.58,0.00019039,2]
[377988662,1754651450206,-400.0,0.00019039,2]
[377988663,1754651450227,-1189.0,0.00019039,2]
[377988664,1754651450238,-713.83,0.00019039,2]
[377988665,1754651450247,-400.0,0.00019039,2]
[377988666,1754651450258,-765.71,0.00019039,2]
[377988667,1754651450269,-400.0,0.00019039,2]
[377988668,1754651450282,-826.65,0.00019039,2]
[377988669,1754651450292,-769.89,0.00019039,2]
[377988670,1754651450301,-438.28,0.00019039,2]
[377988671,1754651450310,-1295.53,0.00019039,2]
[377988672,1754651450321,-420.38,0.00019039,2]
[377988673,1754651450334,-400.0,0.00019039,2]
[377988674,1754651450343,-400.0,0.00019039,2]
[377988675,1754651450354,-408.74,0.00019039,2]
[377988676,1754651450365,-400.0,0.00019039,2]
[377988677,1754651450374,-657.48,0.00019039,2]
[377988678,1754651450383,-890.12,0.00019039,2]
[377988679,1754651450392,-400.0,0.00019039,2]
[377988680,1754651450401,-1591.77,0.00019039,2]
[377988681,1754651450410,-627.33,0.00019039,2]
[377988682,1754651450420,-683.69,0.00019039,2]
[377988683,1754651450429,-400.0,0.00019039,2]
[377988684,1754651450438,-400.0,0.00019039,2]
[377988685,1754651450447,-400.0,0.00019039,2]
[377988686,1754651450457,-801.86,0.00019039,2]
[377988687,1754651450466,-400.0,0.00019039,2]
[377988688,1754651450475,-400.0,0.00019039,2]
[377988689,1754651450485,-1840.34,0.00019039,2]
[377988690,1754651450494,-427.28,0.00019039,2]
[377988691,1754651450503,-807.93,0.00019039,2]
[377988692,1754651450512,-477.04,0.00019039,2]
[377988693,1754651450521,-400.0,0.00019039,2]
[377988694,1754651450530,-400.0,0.00019039,2]
[377988695,1754651450539,-400.0,0.00019039,2]
[377988696,1754651450548,-469.53,0.00019039,2]
[377988697,1754651450558,-177.09695275,0.00019039,2]
[377988698,1754651450567,-521.07,0.00019039,2]
[377988699,1754651450576,-790.8,0.00019039,2]
[377988700,1754651450585,-400.0,0.00019039,2]
[377988701,1754651450595,-400.0,0.00019039,2]
[377988702,1754651450604,-1191.83,0.00019039,2]
[377988703,1754651450613,-400.0,0.00019039,2]
[377988704,1754651450622,-720.72,0.00019039,2]
[377988705,1754651450631,-400.0,0.00019039,2]
[377988706,1754651450640,-400.0,0.00019039,2]
[377988707,1754651450650,-1529.75,0.00019039,2]
[377988708,1754651450659,-651.7,0.00019039,2]
[377988709,1754651450669,-743.37,0.00019039,2]
[377988710,1754651450679,-400.0,0.00019039,2]
[377988711,1754651450688,-400.0,0.00019039,2]
[377988712,1754651450697,-400.0,0.00019039,2]
[377988713,1754651450706,-586.4,0.00019039,2]
[377988714,1754651450716,-987.81,0.00019039,2]
[377988715,1754651450725,-400.0,0.00019039,2]
[377988716,1754651450734,-400.0,0.00019039,2]
[377988717,1754651450743,-400.0,0.0001904,2]
[377988718,1754651450752,-183.89163771,0.0001904,2]
[377988719,1754651450762,-400.0,0.0001904,2]
[377988720,1754651450771,-442.8,0.0001904,2]
[377988721,1754651450780,-400.0,0.0001904,2]
[377988722,1754651450790,-607.23,0.0001904,2]
[377988723,1754651450799,-643.73,0.0001904,2]
[377988724,1754651450809,-400.0,0.0001904,2]
[377988725,1754651450818,-683.78,0.0001904,2]
[377988726,1754651450829,-540.1,0.0001904,2]
[377988727,1754651450838,-400.0,0.0001904,2]
[377988728,1754651450848,-400.0,0.0001904,2]
[377988729,1754651450858,-400.0,0.0001904,2]
[377988730,1754651450868,-657.41,0.0001904,2]
[377988731,1754651450877,-522.49,0.0001904,2]
[377988732,1754651450887,-400.0,0.0001904,2]
[377988733,1754651450897,-921.54,0.0001904,2]
[377988734,1754651450906,-400.0,0.0001904,2]
[377988735,1754651450915,-400.0,0.0001904,2]
[377988736,1754651450925,-400.0,0.0001904,2]
[377988737,1754651450935,-518.2,0.0001904,2]
[377988738,1754651450944,-648.12,0.0001904,2]
[377988739,1754651450954,-400.0,0.0001904,2]
[377988740,1754651450963,-400.0,0.0001904,2]
[377988741,1754651450972,-400.0,0.0001904,2]
[377988742,1754651450982,-400.0,0.0001904,2]
[377988743,1754651450991,-679.35,0.0001904,2]
[377988744,1754651451001,-400.0,0.0001904,2]
[377988745,1754651451011,-400.0,0.0001904,2]
[377988746,1754651451019,-400.0,0.0001904,2]
[377988747,1754651451028,-690.39,0.0001904,2]
[377988748,1754651451038,-864.89,0.0001904,2]
[377988749,1754651451047,-400.0,0.0001904,2]
[377988750,1754651451057,-400.0,0.0001904,2]
[377988751,1754651451067,-400.0,0.0001904,2]
[377988752,1754651451076,-400.0,0.0001904,2]
[377988753,1754651451086,-400.0,0.0001904,2]
[377988754,1754651451096,-400.0,0.0001904,2]
[377988755,1754651451105,-693.87,0.0001904,2]
[377988756,1754651451114,-400.0,0.0001904,2]
[377988757,1754651451124,-400.0,0.0001904,2]
[377988758,1754651451134,-400.0,0.0001904,2]
[377988759,1754651451143,-479.27,0.0001904,2]
[377988760,1754651451152,-699.72,0.0001904,2]
[377988761,1754651451161,-444.41,0.0001904,2]
[377988762,1754651451170,-568.41,0.0001904,2]
[377988763,1754651451180,-400.0,0.0001904,2]
[377988764,1754651451189,-477.47,0.0001904,2]
[377988765,1754651451199,-400.0,0.0001904,2]
[377988766,1754651451208,-812.06,0.0001904,2]
[377988767,1754651451217,-400.0,0.0001904,2]
[377988768,1754651451227,-400.0,0.0001904,2]
[377988769,1754651451237,-483.27,0.0001904,2]
[377988770,1754651451247,-400.0,0.0001904,2]
[377988771,1754651451256,-596.47,0.0001904,2]
[377988772,1754651451265,-400.0,0.0001904,2]
[377988773,1754651451276,-432.6,0.0001904,2]
[377988774,1754651451287,-400.0,0.0001904,2]
[377988775,1754651451296,-400.0,0.0001904,2]
[377988776,1754651451306,-414.68,0.0001904,2]
[377988777,1754651451315,-643.05,0.0001904,2]
[377988778,1754651451326,-766.71,0.0001904,2]
[377988779,1754651451335,-915.31,0.0001904,2]
[377988780,1754651451344,-400.0,0.0001904,2]
[377988781,1754651451354,-400.0,0.0001904,2]
[377988782,1754651451363,-579.12,0.0001904,2]
[377988783,1754651451372,-400.0,0.0001904,2]
[377988784,1754651451381,-400.0,0.0001904,2]
[377988785,1754651451390,-400.0,0.0001904,2]
[377988786,1754651451400,-400.0,0.0001904,2]
[377988787,1754651451409,-693.83,0.0001904,2]
[377988788,1754651451418,-660.04,0.0001904,2]
[377988789,1754651451428,-426.29,0.0001904,2]
[377988790,1754651451437,-400.0,0.0001904,2]
[377988791,1754651451447,-400.0,0.0001904,2]
[377988792,1754651451456,-400.0,0.0001904,2]
[377988793,1754651451465,-1035.97,0.0001904,2]
[377988794,1754651451475,-363.48001023,0.0001904,2]
[377988795,1754651451484,-400.0,0.0001904,2]
[377988796,1754651451495,-400.0,0.0001904,2]
[377988797,1754651451504,-400.0,0.0001904,2]
[377988798,1754651451513,-400.0,0.0001904,2]
[377988799,1754651451523,-408.21,0.0001904,2]
[377988800,1754651451534,-400.0,0.0001904,2]
[377988801,1754651451543,-802.32,0.0001904,2]
[377988802,1754651451552,-400.0,0.0001904,2]
[377988803,1754651451562,-640.75,0.0001904,2]
[377988804,1754651451571,-400.0,0.0001904,2]
[377988805,1754651451581,-847.13,0.0001904,2]
[377988806,1754651451590,-619.79,0.0001904,2]
[377988807,1754651451600,-1190.71,0.0001904,2]
[377988808,1754651451610,-852.65,0.0001904,2]
[377988809,1754651451619,-404.75,0.0001904,2]
[377988810,1754651451629,-400.0,0.0001904,2]
[377988811,1754651451638,-634.45,0.0001904,2]
[377988812,1754651451648,-400.0,0.0001904,2]
[377988813,1754651451657,-772.4,0.0001904,2]
[377988814,1754651451667,-428.33,0.0001904,2]
[377988815,1754651451676,-500.2,0.0001904,2]
[377988816,1754651451685,-928.76,0.0001904,2]
[377988817,1754651451696,-886.46,0.0001904,2]
[377988818,1754651451705,-789.09,0.0001904,2]
[377988819,1754651451714,-400.0,0.0001904,2]
[377988820,1754651451724,-855.66,0.0001904,2]
[377988821,1754651451733,-400.0,0.0001904,2]
[377988822,1754651451742,-483.17,0.0001904,2]
[377988823,1754651451751,-1283.05,0.0001904,2]
[377988824,1754651451761,-644.58,0.0001904,2]
[377988825,1754651451770,-584.51,0.0001904,2]
[377988826,1754651451780,-400.0,0.0001904,2]
[377988827,1754651451789,-674.06,0.0001904,2]
[377988828,1754651451798,-400.0,0.0001904,2]
[377988829,1754651451807,-1155.7,0.0001904,2]
[377988830,1754651451816,-868.55,0.0001904,2]
[377988831,1754651451826,-443.81,0.0001904,2]
[377988832,1754651451835,-734.81,0.0001904,2]
[377988833,1754651451845,-941.46,0.0001904,2]
[377988834,1754651451855,-400.0,0.0001904,2]
[377988835,1754651451865,-400.0,0.0001904,2]
[377988836,1754651451874,-400.0,0.0001904,2]
[377988837,1754651451886,-537.91457377,0.0001904,2]
[377988838,1754651451895,-551.83,0.0001904,2]
[377988839,1754651451905,-463.75,0.0001904,2]
[377988840,1754651451915,-513.31,0.0001904,2]
[377988841,1754651451924,-400.0,0.0001904,2]
[377988842,1754651451933,-1155.19,0.0001904,2]
[377988843,1754651451942,-690.8,0.0001904,2]
[377988844,1754651451951,-530.86,0.0001904,2]
[377988845,1754651451960,-724.8,0.0001904,2]
[377988846,1754651451969,-873.27,0.0001904,2]
[377988847,1754651451978,-745.1,0.0001904,2]
[377988848,1754651451987,-984.4,0.0001904,2]
[377988849,1754651451997,-999.12,0.0001904,2]
[377988850,1754651452006,-609.73,0.0001904,2]
[377988851,1754651452016,-400.0,0.0001904,2]
[377988852,1754651452026,-426.37,0.0001904,2]
[377988853,1754651452035,-943.12,0.0001904,2]
[377988854,1754651452043,-400.0,0.0001904,2]
[377988855,1754651452053,-898.1,0.0001904,2]
[377988856,1754651452062,-447.77,0.0001904,2]
[377988857,1754651452071,-838.1,0.0001904,2]
[377988858,1754651452080,-809.69,0.0001904,2]
[377988859,1754651452089,-596.41,0.0001904,2]
[377988860,1754651452098,-845.6,0.0001904,2]
[377988861,1754651452108,-400.0,0.0001904,2]
[377988862,1754651452118,-1035.62,0.0001904,2]
[377988863,1754651452127,-961.95,0.0001904,2]
[377988864,1754651452138,-1025.88,0.0001904,2]
[377988865,1754651452147,-483.57,0.0001904,2]
[377988866,1754651452157,-400.0,0.0001904,2]
[377988867,1754651452166,-768.19,0.0001904,2]
[377988868,1754651452175,-911.31,0.0001904,2]
[377988869,1754651452184,-739.47,0.0001904,2]
[377988870,1754651452193,-156.63655463,0.0001904,2]
[377988871,1754651452202,-829.05,0.0001904,2]
[377988872,1754651452211,-775.42,0.0001904,2]
[377988873,1754651452220,-400.0,0.0001904,2]
[377988874,1754651452229,-400.0,0.0001904,2]
[377988875,1754651452238,-400.0,0.0001904,2]
[377988876,1754651452247,-400.0,0.0001904,2]
[377988877,1754651452256,-763.13,0.0001904,2]
[377988878,1754651452266,-852.64,0.0001904,2]
[377988879,1754651452277,-860.73,0.0001904,2]
[377988880,1754651452288,-400.0,0.0001904,2]
[377988881,1754651452298,-1251.31,0.0001904,2]
[377988882,1754651452308,-400.0,0.0001904,2]
[377988883,1754651452318,-400.0,0.0001904,2]
[377988884,1754651452330,-865.7,0.0001904,2]
[377988885,1754651452340,-400.0,0.0001904,2]
[377988886,1754651452349,-400.0,0.0001904,2]
[377988887,1754651452361,-1252.93,0.0001904,2]
[377988888,1754651452371,-400.0,0.0001904,2]
[377988889,1754651452381,-400.0,0.0001904,2]
[377988890,1754651452390,-400.0,0.0001904,2]
[377988891,1754651452400,-720.58,0.0001904,2]
[377988892,1754651452411,-1585.35,0.0001904,2]
[377988893,1754651452421,-400.0,0.0001904,2]
[377988894,1754651452430,-772.52,0.0001904,2]
[377988895,1754651452441,-1037.8,0.0001904,2]
[377988896,1754651452451,-882.33,0.0001904,2]
[377988897,1754651452461,-975.76,0.0001904,2]
[377988898,1754651452471,-400.0,0.0001904,2]
[377988899,1754651452481,-1277.8,0.0001904,2]
[377988900,1754651452491,-1023.72,0.0001904,2]
[377988901,1754651452501,-400.0,0.0001904,2]
[377988902,1754651452512,-400.0,0.0001904,2]
[377988903,1754651452522,-1348.56,0.0001904,2]
[377988904,1754651452532,-1158.34,0.0001904,2]
[377988905,1754651452542,-1403.63,0.0001904,2]
[377988906,1754651452551,-997.72,0.0001904,2]
[377988907,1754651452561,-690.45,0.0001904,2]
[377988908,1754651452571,-400.0,0.0001904,2]
[377988909,1754651452580,-610.38,0.0001904,2]
[377988910,1754651452590,-1477.95,0.0001904,2]
[377988911,1754651452599,-817.07,0.0001904,2]
[377988912,1754651452609,-864.17,0.0001904,2]
[377988913,1754651452619,-912.59,0.0001904,2]
[377988914,1754651452629,-400.0,0.0001904,2]
[377988915,1754651452640,-453.33,0.0001904,2]
[377988916,1754651452650,-469.02,0.0001904,2]
[377988917,1754651452660,-802.8,0.0001904,2]
[377988918,1754651452670,-1056.93,0.0001904,2]
[377988919,1754651452680,-571.44,0.0001904,2]
[377988920,1754651452690,-400.0,0.0001904,2]
[377988921,1754651452699,-1231.3,0.0001904,2]
[377988922,1754651452710,-805.16,0.0001904,2]
[377988923,1754651452720,-400.0,0.0001904,2]
[377988924,1754651452732,-874.47,0.0001904,2]
[377988925,1754651452742,-831.64,0.0001904,2]
[377988926,1754651452752,-634.38,0.0001904,2]
[377988927,1754651452762,-402.99,0.0001904,2]
[377988928,1754651452772,-400.0,0.0001904,2]
[377988929,1754651452782,-400.0,0.0001904,2]
[377988930,1754651452791,-895.73,0.0001904,2]
[377988931,1754651452801,-1098.45,0.0001904,2]
[377988932,1754651452810,-500.0,0.0001904,2]
[377988933,1754651452820,-500.0,0.0001904,2]
[377988934,1754651452829,-500.0,0.0001904,2]
[377988935,1754651452839,-500.0,0.0001904,2]
[377988936,1754651452848,-500.0,0.0001904,2]
[377988937,1754651452857,-500.0,0.0001904,2]
[377988938,1754651452867,-500.0,0.0001904,2]
[377988939,1754651452876,-500.0,0.0001904,2]
[377988940,1754651452887,-500.0,0.0001904,2]
[377988941,1754651452898,-500.0,0.0001904,2]
[377988942,1754651452908,-500.0,0.0001904,2]
[377988943,1754651452918,-500.0,0.0001904,2]
[377988944,1754651452929,-500.0,0.0001904,2]
[377988945,1754651452939,-500.0,0.0001904,2]
[377988946,1754651452949,-648.0,0.0001904,2]
[377988947,1754651452960,-413.0397659,0.0001904,2]
[377988948,1754651452969,-709.45,0.0001904,2]
[377988949,1754651452979,-500.0,0.0001904,2]
[377988950,1754651452989,-400.0,0.0001904,2]
[377988951,1754651452998,-500.0,0.0001904,2]
[377988952,1754651453008,-500.0,0.0001904,2]
[377988953,1754651453017,-400.0,0.0001904,2]
[377988954,1754651453026,-1036.37,0.0001904,2]
[377988955,1754651453036,-400.0,0.0001904,2]
[377988956,1754651453046,-1247.93,0.0001904,2]
[377988957,1754651453055,-887.39,0.0001904,2]
[377988958,1754651453064,-1375.92,0.0001904,2]
[377988959,1754651453074,-400.0,0.0001904,2]
[377988960,1754651453083,-400.0,0.0001904,2]
[377988961,1754651453092,-697.13,0.0001904,2]
[377988962,1754651453102,-665.52,0.0001904,2]
[377988963,1754651453111,-781.93,0.0001904,2]